bitfinex/quotes_BTCUSD_20260308
["timestamp","ask_amount","ask_price","bid_price","bid_amount"]
[1772968444137,0.00148,67599.0,67586.0,0.02773106]
[1772968445586,0.00148,67599.0,67587.0,0.07397872]
[1772968445759,0.13426529,67599.0,67587.0,0.07397872]
[1772968446297,0.01992096,67597.0,67587.0,0.07397872]
[1772968446505,0.07544574,67599.0,67586.0,0.07397914]
[1772968446506,0.13278529,67594.0,67586.0,0.07397914]
[1772968446722,0.00148,67593.0,67580.0,0.0002]
[1772968446937,0.13278529,67590.0,67580.0,0.0002]
[1772968447139,0.00148,67593.0,67579.0,0.07398653]
[1772968447140,0.15266732,67587.0,67579.0,0.07398748]
[1772968447344,0.00148,67586.0,67579.0,0.07398748]
[1772968447776,0.00148,67586.0,67577.0,0.07398748]
[1772968448017,0.00148,67586.0,67577.0,0.0740701]
[1772968448191,0.00148,67586.0,67577.0,0.10457458]
[1772968450167,0.07397607,67590.0,67577.0,0.0740701]
[1772968450288,0.00148,67588.0,67578.0,0.03080908]
[1772968450505,0.07397607,67590.0,67578.0,0.03080908]
[1772968450735,0.00148,67589.0,67578.0,0.03080908]
[1772968452266,0.07397762,67588.0,67579.0,0.10479656]
[1772968452797,0.07545762,67589.0,67579.0,0.10479656]
[1772968453581,0.00148,67588.0,67579.0,0.10479656]
[1772968453994,0.07397762,67589.0,67579.0,0.10479656]
[1772968454204,0.00148,67588.0,67579.0,0.10479656]
[1772968454402,0.07545798,67588.0,67579.0,0.10479656]
[1772968454769,0.00148,67588.0,67579.0,0.10479656]
[1772968455029,0.07397506,67591.0,67579.0,0.07398748]
[1772968455030,0.07397544,67590.0,67579.0,0.07398748]
[1772968455234,0.00148,67589.0,67580.0,0.03080908]
[1772968455597,0.00148,67588.0,67580.0,0.03080908]
[1772968456180,0.00148,67588.0,67581.0,0.07398529]
[1772968457031,0.07397706,67589.0,67581.0,0.07398529]
[1772968457345,0.00148,67589.0,67581.0,0.07398529]
[1772968457552,0.07397114,67594.0,67582.0,0.03080908]
[1772968457705,0.0741853,67600.0,67584.0,0.03080908]
[1772968457909,0.0741853,67600.0,67585.0,0.03080908]
[1772968457910,0.00148,67599.0,67585.0,0.03080908]
[1772968458257,0.00148,67598.0,67585.0,0.03080908]
[1772968458407,0.00148,67597.0,67586.0,0.10478889]
[1772968458809,0.0741853,67600.0,67586.0,0.10478889]
[1772968459115,0.00148,67596.0,67586.0,0.07397981]
[1772968459340,0.0741853,67600.0,67587.0,0.03080908]
[1772968459544,0.00148,67599.0,67587.0,0.03080908]
[1772968459984,0.00148,67598.0,67587.0,0.03080908]
[1772968460411,0.0741853,67600.0,67588.0,0.07397762]
[1772968460609,0.00148,67597.0,67588.0,0.1047867]
[1772968460785,0.00022001,67600.0,67588.0,0.07397762]
[1772968460984,0.00148,67599.0,67589.0,0.12717959]
[1772968461184,0.00022001,67600.0,67590.0,0.12717959]
[1772968461447,0.00170001,67600.0,67591.0,0.12717959]
[1772968461571,0.00170001,67600.0,67592.0,0.03080908]
[1772968462244,0.00022001,67600.0,67588.0,0.07397762]
[1772968462401,0.09438593,67599.0,67588.0,0.07397762]
[1772968462604,0.07396559,67599.0,67588.0,0.07397762]
[1772968465118,0.07396559,67599.0,67588.0,0.1047867]
[1772968465935,0.13278529,67598.0,67587.0,0.07545762]
[1772968466104,0.02019867,67597.0,67587.0,0.07397762]
[1772968466311,0.15298396,67597.0,67587.0,0.07397762]
[1772968466964,0.09416748,67597.0,67586.0,0.0002]
[1772968469300,0.07396881,67597.0,67586.0,0.0002]
[1772968471545,0.07396714,67598.0,67586.0,0.0002]
[1772968473785,0.09398797,67598.0,67586.0,0.0002]
[1772968474006,0.07396714,67598.0,67586.0,0.0002]
[1772968474204,0.13624474,67595.0,67582.0,0.07398215]
[1772968474405,0.02150083,67594.0,67582.0,0.07398215]
[1772968474604,0.02150083,67594.0,67586.0,0.0002]
[1772968475535,0.07397215,67593.0,67586.0,0.0002]
[1772968475743,0.07397215,67593.0,67579.0,0.0002]
[1772968475744,0.01991364,67592.0,67579.0,0.0002]
[1772968475961,0.01991364,67588.0,67574.0,1e-08]
[1772968476189,0.13624474,67585.0,67574.0,1e-08]
[1772968476418,0.15615838,67584.0,67574.0,0.07399283]
[1772968477084,0.00148,67583.0,67574.0,0.07399283]
[1772968477451,0.07398419,67582.0,67574.0,0.07399283]
[1772968477638,0.09379519,67582.0,67573.0,0.07438635]
[1772968477864,0.00148,67581.0,67573.0,0.07438635]
[1772968478061,0.00148,67581.0,67573.0,0.0003925]
[1772968478296,0.00148,67581.0,67573.0,0.07438646]
[1772968480070,0.07398638,67580.0,67573.0,0.07438646]
[1772968480219,0.13624474,67579.0,67566.0,0.0002]
[1772968480564,0.01995888,67576.0,67566.0,0.0002]
[1772968480764,0.02138672,67575.0,67566.0,0.0002]
[1772968481145,0.13772474,67575.0,67563.0,0.0003925]
[1772968481349,0.01990672,67572.0,67563.0,0.0003925]
[1772968481549,0.01990672,67571.0,67563.0,0.0003925]
[1772968482341,0.07399733,67570.0,67563.0,0.0003925]
[1772968482545,0.00148,67569.0,67563.0,0.0003925]
[1772968484148,0.00248,67569.0,67563.0,0.0003925]
[1772968484693,0.07399952,67568.0,67563.0,0.0003925]
[1772968485947,0.07499952,67568.0,67563.0,0.0003925]
[1772968487033,0.07599952,67568.0,67563.0,0.0003925]
[1772968487428,0.07599952,67568.0,67559.0,0.0002]
[1772968488333,0.0199132,67567.0,67556.0,0.0002]
[1772968488554,0.07399952,67568.0,67556.0,0.0002]
[1772968488555,0.0199132,67565.0,67556.0,0.0002]
[1772968488751,0.0754839,67564.0,67556.0,0.0002]
[1772968489338,0.01986152,67563.0,67552.0,0.0002]
[1772968489543,0.01986152,67563.0,67552.0,0.00030612]
[1772968490401,0.01986152,67563.0,67556.0,0.0002]
[1772968490590,0.0750039,67564.0,67556.0,0.0002]
[1772968490769,0.00148,67563.0,67556.0,0.0002]
[1772968492997,0.07400609,67562.0,67556.0,0.0002]
[1772968493625,0.00148,67561.0,67552.0,0.00030612]
[1772968493804,0.02139886,67561.0,67552.0,0.00030612]
[1772968495218,0.07400828,67560.0,67552.0,0.00030612]
[1772968495929,0.07400828,67560.0,67550.0,0.0012]
[1772968496142,0.01981407,67559.0,67550.0,0.0012]
[1772968496339,0.13624474,67559.0,67550.0,0.0012]
[1772968496527,0.01981407,67559.0,67550.0,0.0012]
[1772968497212,0.07401047,67558.0,67550.0,0.0012]
[1772968497414,0.00148,67557.0,67556.0,0.0002]
[1772968498136,0.00148,67557.0,67550.0,0.0012]
[1772968498689,0.00248,67557.0,67550.0,0.0012]
[1772968498990,0.00148,67557.0,67550.0,0.0012]
[1772968499336,0.07401267,67556.0,67550.0,0.0012]
[1772968500796,0.07501267,67556.0,67550.0,0.0012]
[1772968501334,0.07401267,67556.0,67550.0,0.0012]
[1772968501538,0.01955652,67555.0,67545.0,0.0002]
[1772968501734,0.01950487,67554.0,67542.0,0.0002]
[1772968501936,0.07501267,67556.0,67542.0,0.07422766]
[1772968502163,0.07401036,67559.0,67546.0,0.02929884]
[1772968502511,0.13624474,67573.0,67550.0,0.02929884]
[1772968502512,0.00148,67570.0,67550.0,0.02929884]
[1772968502712,0.00148,67570.0,67554.0,0.02929884]
[1772968502918,0.07399295,67574.0,67557.0,0.13665176]
[1772968503102,0.07399295,67574.0,67559.0,0.13665176]
[1772968503103,0.00148,67573.0,67559.0,0.13665176]
[1772968503306,0.07399295,67574.0,67560.0,0.02929884]
[1772968503441,0.07399624,67571.0,67559.0,0.02806216]
[1772968503642,0.07399624,67571.0,67560.0,0.13083613]
[1772968503900,0.07399624,67571.0,67561.0,0.02806216]
[1772968504081,0.00022001,67564.0,67561.0,0.02806216]
[1772968504598,0.07421625,67571.0,67559.0,0.13083613]
[1772968504870,0.00022001,67571.0,67562.0,0.02806216]
[1772968505045,0.00170001,67571.0,67565.0,0.02806216]
[1772968505402,0.00022001,67571.0,67566.0,0.07400171]
[1772968505596,0.07399074,67577.0,67566.0,0.07400171]
[1772968505597,0.07420907,67578.0,67569.0,0.02806216]
[1772968505840,0.07420907,67578.0,67570.0,0.02806216]
[1772968506599,0.0001978,67579.0,67570.0,0.02806216]
[1772968506800,0.07398533,67581.0,67572.0,0.02806216]
[1772968507149,0.07546857,67580.0,67573.0,0.02806216]
[1772968507502,0.00148,67579.0,67573.0,0.10205575]
[1772968507704,0.07398857,67580.0,67573.0,0.10205575]
[1772968507924,0.00148,67580.0,67573.0,0.10205575]
[1772968508746,0.00148,67580.0,67573.0,0.10331672]
[1772968508954,0.07398638,67582.0,67573.0,0.07399359]
[1772968509128,0.00148,67579.0,67573.0,0.10331672]
[1772968509575,0.00011961,67582.0,67573.0,0.10331672]
[1772968509792,0.00148,67581.0,67574.0,0.02932313]
[1772968510489,0.00011961,67582.0,67574.0,0.02932313]
[1772968510688,0.00148,67581.0,67574.0,0.02932313]
[1772968510978,0.00148,67583.0,67574.0,0.02932313]
[1772968511186,0.0741747,67589.0,67576.0,0.02932313]
[1772968511481,0.07417461,67589.0,67577.0,0.02932313]
[1772968511629,0.07397872,67587.0,67579.0,0.02932313]
[1772968511838,0.00148,67586.0,67579.0,0.02932313]
[1772968512451,0.00148,67587.0,67579.0,0.13083613]
[1772968512803,0.00148,67588.0,67581.0,0.02932313]
[1772968513004,0.00041781,67589.0,67581.0,0.02932313]
[1772968513227,0.0758746,67589.0,67581.0,0.02932313]
[1772968513592,0.0743946,67589.0,67581.0,0.02932313]
[1772968513788,0.00148,67588.0,67582.0,0.07398419]
[1772968514735,0.0743946,67589.0,67582.0,0.07398419]
[1772968515020,0.07545795,67588.0,67582.0,0.07398419]
[1772968515176,0.07397795,67588.0,67582.0,0.07398419]
[1772968515445,0.07545795,67588.0,67582.0,0.07398419]
[1772968516262,0.07397795,67588.0,67582.0,0.07398419]
[1772968516431,0.00148,67587.0,67582.0,0.07398419]
[1772968516650,0.07397795,67588.0,67582.0,0.07398419]
[1772968516827,0.00148,67587.0,67580.0,0.07398596]
[1772968517232,0.07397795,67588.0,67580.0,0.07398596]
[1772968517460,0.00148,67587.0,67580.0,0.07398596]
[1772968517661,0.00148,67587.0,67581.0,0.02932313]
[1772968518839,0.00148,67587.0,67581.0,0.1033074]
[1772968519043,0.00041781,67589.0,67581.0,0.07398427]
[1772968519375,0.00148,67588.0,67582.0,0.02932313]
[1772968519515,0.0743944,67589.0,67582.0,0.02932313]
[1772968519715,0.00170001,67588.0,67582.0,0.02932313]
[1772968520561,0.00022001,67588.0,67582.0,0.02932313]
[1772968520770,0.00170001,67588.0,67582.0,0.02932313]
[1772968520943,0.00022001,67588.0,67583.0,0.0739831]
[1772968521144,0.00022001,67588.0,67584.0,0.02932313]
[1772968523039,0.00022001,67588.0,67576.0,0.02932313]
[1772968523242,0.00575,67592.0,67578.0,0.02932313]
[1772968523416,0.00575,67592.0,67580.0,0.02932313]
[1772968524228,0.00575,67592.0,67574.0,0.00159961]
[1772968524229,0.00575,67592.0,67581.0,0.02932313]
[1772968524404,0.00022001,67596.0,67583.0,0.02932313]
[1772968524607,0.00148,67594.0,67585.0,0.02932313]
[1772968525937,0.00022001,67596.0,67585.0,0.02932313]
[1772968526537,0.00170001,67596.0,67586.0,0.02932313]
[1772968527340,0.00022001,67588.0,67586.0,0.02932313]
[1772968530668,0.00022001,67588.0,67580.0,0.00148]
[1772968530886,0.00022001,67588.0,67577.0,0.02932313]
[1772968531866,0.00022001,67588.0,67580.0,0.001]
[1772968532067,0.00022001,67588.0,67577.0,0.02932313]
[1772968533498,0.00022001,67588.0,67577.0,0.03032313]
[1772968533693,0.00022001,67588.0,67577.0,0.13873781]
[1772968533878,0.00022001,67588.0,67580.0,0.02932313]
[1772968535162,0.00022001,67588.0,67580.0,0.03032313]
[1772968535592,0.00022001,67588.0,67580.0,0.03052313]
[1772968536942,0.00022001,67588.0,67580.0,0.02952313]
[1772968537605,0.00022001,67588.0,67580.0,0.0002]
[1772968539112,0.00022001,67588.0,67580.0,0.02729875]
[1772968540352,0.00022001,67588.0,67581.0,0.02709875]
[1772968540892,0.00170001,67595.0,67582.0,0.02709875]
[1772968541079,0.00022001,67595.0,67582.0,0.02709875]
[1772968541989,0.00022001,67595.0,67584.0,0.16483656]
[1772968542193,0.00022001,67595.0,67585.0,0.02709875]
[1772968548839,0.00022001,67595.0,67587.0,0.02709875]
[1772968550019,0.00022001,67595.0,67582.0,0.13941781]
[1772968550020,0.00022001,67595.0,67582.0,0.00168]
[1772968550239,0.00022001,67595.0,67582.0,0.02877875]
[1772968551297,0.00022001,67595.0,67582.0,0.02729875]
[1772968551498,0.00022001,67595.0,67582.0,0.02877875]
[1772968551696,0.00022001,67595.0,67582.0,0.02729875]
[1772968552109,0.01757977,67595.0,67582.0,0.02729875]
[1772968552860,0.00022001,67595.0,67582.0,0.02729875]
[1772968553068,0.00170001,67595.0,67587.0,0.0002]
[1772968557187,0.01708511,67594.0,67582.0,0.0002]
[1772968557390,0.14658281,67593.0,67582.0,0.0002]
[1772968558163,0.00170001,67595.0,67583.0,0.02709875]
[1772968558365,0.00170001,67595.0,67583.0,0.16483656]
[1772968558588,0.00170001,67595.0,67584.0,0.02709875]
[1772968560178,0.00170001,67595.0,67584.0,0.13773781]
[1772968560406,0.00022001,67595.0,67587.0,0.02709875]
[1772968561065,0.00022001,67595.0,67587.0,0.02729875]
[1772968563704,0.00022001,67596.0,67587.0,0.13075633]
[1772968563877,0.00022001,67596.0,67588.0,0.0264919]
[1772968564719,0.00022001,67604.0,67588.0,0.0264919]
[1772968564874,0.25567973,67615.0,67587.0,0.0002]
[1772968564875,0.00148,67612.0,67591.0,0.13055633]
[1772968565076,0.00148,67612.0,67594.0,0.0264919]
[1772968565289,0.03251392,67619.0,67598.0,0.0264919]
[1772968565483,0.0017104,67613.0,67600.0,0.0264919]
[1772968565930,0.0017104,67613.0,67601.0,0.13055633]
[1772968565931,0.0002304,67613.0,67601.0,0.13055633]
[1772968566136,0.0002304,67613.0,67604.0,0.0264919]
[1772968566343,0.00575,67619.0,67604.0,0.0264919]
[1772968566577,0.00039885,67613.0,67604.0,0.0264919]
[1772968566704,0.00586955,67619.0,67606.0,0.13055633]
[1772968567044,0.00586955,67619.0,67599.0,0.00148]
[1772968567045,0.00586955,67619.0,67608.0,0.0264919]
[1772968567825,0.00586955,67619.0,67609.0,0.0264919]
[1772968568057,0.14576176,67631.0,67609.0,0.0264919]
[1772968568220,0.02662062,67637.0,67610.0,0.0264919]
[1772968568459,0.02662062,67637.0,67609.0,0.00011955]
[1772968568460,0.178118,67634.0,67614.0,0.02813505]
[1772968568685,0.178118,67634.0,67616.0,0.02813505]
[1772968568885,0.04187381,67634.0,67616.0,0.13055633]
[1772968569097,0.01475014,67634.0,67619.0,0.02813505]
[1772968569290,0.01475014,67634.0,67621.0,0.13055633]
[1772968569648,0.00076,67636.0,67623.0,0.02813505]
[1772968569836,0.0002304,67638.0,67623.0,0.13055633]
[1772968570017,0.0017104,67638.0,67624.0,0.02813505]
[1772968570251,0.0002304,67638.0,67626.0,0.02813505]
[1772968570435,0.0002304,67638.0,67626.0,0.13055633]
[1772968570632,0.0002304,67638.0,67627.0,0.02813505]
[1772968571579,0.0002304,67638.0,67629.0,0.02813505]
[1772968571782,0.0002304,67638.0,67630.0,0.02813505]
[1772968571979,0.00012,67641.0,67632.0,0.02813505]
[1772968572604,0.00012,67641.0,67632.0,0.13055633]
[1772968572806,0.00148,67644.0,67628.0,0.00148]
[1772968572807,0.00575,67646.0,67635.0,0.02813505]
[1772968573010,0.0002304,67651.0,67637.0,0.02813505]
[1772968573233,0.0002304,67651.0,67639.0,0.02813505]
[1772968573500,0.0002304,67651.0,67641.0,0.02813505]
[1772968573650,0.0001432,67651.0,67641.0,0.02813505]
[1772968574064,0.0001432,67651.0,67641.0,0.02804653]
[1772968574444,0.0001432,67651.0,67637.0,0.00111949]
[1772968574445,0.13624419,67650.0,67637.0,0.00111949]
[1772968574652,0.02691121,67648.0,67637.0,0.00111949]
[1772968574829,0.1631554,67648.0,67637.0,0.00111949]
[1772968575247,0.0001432,67651.0,67637.0,0.02925454]
[1772968575475,0.0001432,67651.0,67637.0,0.02825454]
[1772968575652,0.0001432,67651.0,67639.0,0.02813505]
[1772968575859,0.00022001,67648.0,67639.0,0.02813505]
[1772968576283,0.00022001,67648.0,67639.0,0.0279674]
[1772968576869,0.00022001,67648.0,67637.0,0.00111949]
[1772968577118,0.00022001,67648.0,67637.0,0.00011949]
[1772968578035,0.00022001,67648.0,67638.0,0.02813505]
[1772968578238,0.00170001,67648.0,67638.0,0.02813505]
[1772968579021,0.00170001,67648.0,67639.0,0.13055633]
[1772968579221,0.00022001,67648.0,67640.0,0.02813505]
[1772968581465,0.13624419,67645.0,67626.0,0.12444874]
[1772968581794,0.00011942,67645.0,67626.0,0.12444874]
[1772968582012,0.00148,67644.0,67627.0,0.02961505]
[1772968582233,0.00148,67644.0,67629.0,0.02813505]
[1772968582440,0.13624419,67643.0,67626.0,0.12444874]
[1772968582644,0.15275698,67640.0,67626.0,0.12544874]
[1772968582846,0.01644999,67637.0,67626.0,0.09877461]
[1772968583048,0.13772419,67636.0,67626.0,0.09777461]
[1772968583178,0.00148,67638.0,67627.0,0.02813505]
[1772968583380,0.00011942,67645.0,67628.0,0.02813505]
[1772968583584,0.00148,67644.0,67628.0,0.02813505]
[1772968584648,0.00148,67643.0,67628.0,0.02813505]
[1772968585467,0.01641975,67641.0,67628.0,0.001]
[1772968585611,0.13624419,67638.0,67626.0,0.09777461]
[1772968586013,0.13624419,67636.0,67626.0,0.09777461]
[1772968586259,0.00148,67643.0,67626.0,0.09777461]
[1772968586260,0.15260149,67635.0,67626.0,0.09777461]
[1772968587368,0.15408149,67635.0,67626.0,0.09777461]
[1772968587820,0.13772419,67635.0,67626.0,0.09777461]
[1772968589399,0.01617194,67634.0,67625.0,0.0006]
[1772968589596,0.13624419,67631.0,67619.0,0.00575]
[1772968589757,0.00148,67635.0,67626.0,0.0002]
[1772968590956,0.11310612,67636.0,67626.0,0.0002]
[1772968591173,0.02241274,67643.0,67627.0,0.02813505]
[1772968591377,0.00148,67642.0,67627.0,0.0279674]
[1772968591723,0.02399915,67642.0,67627.0,0.0279674]
[1772968592130,0.02268678,67641.0,67627.0,0.02779977]
[1772968592524,0.02268678,67641.0,67626.0,0.0002]
[1772968592525,0.13309232,67640.0,67626.0,0.0002]
[1772968592866,0.02262716,67637.0,67626.0,0.0002]
[1772968593071,0.15571948,67636.0,67626.0,0.0002]
[1772968593213,0.00148,67635.0,67626.0,0.0002]
[1772968593612,0.13309232,67633.0,67619.0,0.00595]
[1772968593806,0.02256667,67632.0,67619.0,0.00595]
[1772968593998,0.13309232,67633.0,67620.0,0.02813505]
[1772968594220,0.00148,67635.0,67620.0,0.02813505]
[1772968595614,0.00148,67634.0,67620.0,0.02813505]
[1772968596556,0.00148,67633.0,67620.0,0.02833505]
[1772968599205,0.02225249,67632.0,67620.0,0.0002]
[1772968599381,0.02225249,67630.0,67620.0,0.0002]
[1772968599584,0.00148,67633.0,67617.0,0.0001038]
[1772968599585,0.13309232,67629.0,67617.0,0.0001038]
[1772968599772,0.00148,67633.0,67617.0,0.0001038]
[1772968599773,0.15528633,67627.0,67617.0,0.0001038]
[1772968599955,0.00148,67626.0,67617.0,0.0001038]
[1772968600775,0.00148,67626.0,67617.0,0.0271372]
[1772968601727,0.00148,67626.0,67617.0,0.0001038]
[1772968602102,0.00148,67625.0,67618.0,0.0270334]
[1772968602306,0.00148,67627.0,67618.0,0.0270334]
[1772968602622,0.00148,67628.0,67618.0,0.0270334]
[1772968602785,0.02352187,67628.0,67613.0,0.0002]
[1772968602990,0.02204187,67624.0,67613.0,0.0002]
[1772968603190,0.02204187,67622.0,67613.0,0.0002]
[1772968603394,0.02204187,67622.0,67618.0,0.0002]
[1772968603395,0.00148,67621.0,67618.0,0.0002]
[1772968603597,0.02204187,67621.0,67618.0,0.0012]
[1772968603792,0.00148,67620.0,67618.0,0.0012]
[1772968604025,0.00148,67619.0,67618.0,0.0012]
[1772968604220,0.00148,67620.0,67618.0,0.0012]
[1772968604693,0.00148,67620.0,67618.0,0.0002]
[1772968605092,0.13309232,67641.0,67618.0,0.0002]
[1772968605292,0.02193295,67637.0,67618.0,0.0272334]
[1772968605506,0.13309232,67634.0,67618.0,0.0272334]
[1772968605799,0.00011942,67641.0,67618.0,0.0272334]
[1772968605800,0.02187611,67631.0,67618.0,0.0272334]
[1772968605960,0.00148,67630.0,67618.0,0.0272334]
[1772968606792,0.13309232,67629.0,67618.0,0.0002]
[1772968607011,0.00148,67630.0,67613.0,0.0002]
[1772968607012,0.02181955,67626.0,67613.0,0.0002]
[1772968607184,0.13309232,67623.0,67612.0,0.0002]
[1772968607381,0.13309232,67623.0,67606.0,0.0272334]
[1772968607382,0.13309232,67619.0,67606.0,0.0002]
[1772968607591,0.02181955,67615.0,67604.0,0.0002]
[1772968607807,0.02176397,67613.0,67604.0,0.0002]
[1772968608037,0.13309232,67611.0,67592.0,0.00575]
[1772968608235,0.00148,67610.0,67598.0,0.0270334]
[1772968608434,0.00148,67609.0,67598.0,0.0270334]
[1772968608648,0.00148,67608.0,67604.0,0.001]
[1772968609100,0.00148,67608.0,67598.0,0.02743225]
[1772968609404,0.00148,67608.0,67598.0,0.02843225]
[1772968609602,0.0004,67625.0,67599.0,0.12785885]
[1772968609801,0.13457232,67624.0,67602.0,0.0270334]
[1772968610008,0.02166081,67621.0,67602.0,0.0270334]
[1772968610168,0.13309232,67619.0,67602.0,0.0270334]
[1772968610389,0.02166081,67618.0,67602.0,0.0270334]
[1772968610586,0.02314081,67617.0,67602.0,0.0270334]
[1772968610960,0.02314081,67617.0,67602.0,0.0272334]
[1772968611197,0.02161574,67615.0,67602.0,0.0002]
[1772968612078,0.13309232,67614.0,67602.0,0.0002]
[1772968612280,0.02156047,67611.0,67598.0,0.00039885]
[1772968612486,0.00148,67610.0,67598.0,0.00039885]
[1772968613900,0.00132759,67610.0,67598.0,0.00039885]
[1772968614278,0.00132759,67610.0,67598.0,0.00139885]
[1772968614479,0.02145144,67607.0,67598.0,0.00139885]
[1772968614682,0.0213975,67605.0,67595.0,0.09857212]
[1772968614882,0.0213975,67603.0,67595.0,0.09857212]
[1772968615083,0.13309232,67604.0,67592.0,0.00575]
[1772968615084,0.0228775,67602.0,67592.0,0.00575]
[1772968615309,0.0213975,67600.0,67592.0,0.00575]
[1772968615717,0.0213975,67600.0,67590.0,0.000247]
[1772968616488,0.0213975,67600.0,67595.0,0.001]
[1772968617497,0.13309232,67601.0,67595.0,0.001]
[1772968617498,0.00039804,67605.0,67595.0,0.001]
[1772968617716,0.00148,67599.0,67591.0,0.0270334]
[1772968618481,0.00148,67599.0,67598.0,0.0002]
[1772968618788,0.00148,67599.0,67591.0,0.0002]
[1772968619111,0.00148,67599.0,67591.0,0.0012]
[1772968619313,0.00148,67599.0,67591.0,0.0002]
[1772968620767,0.00132761,67599.0,67591.0,0.0002]
[1772968621747,0.00132761,67599.0,67591.0,0.0012]
[1772968622466,0.13309232,67598.0,67584.0,0.0002]
[1772968622646,0.01537542,67597.0,67584.0,0.0002]
[1772968623431,5.971e-05,67596.0,67584.0,0.0002]
[1772968623626,0.01476527,67596.0,67584.0,0.0002]
[1772968624674,5.971e-05,67593.0,67584.0,0.0002]
[1772968624891,0.00148,67592.0,67584.0,0.0002]
[1772968625655,0.00039804,67605.0,67587.0,0.13100733]
[1772968625854,0.00039804,67605.0,67584.0,0.0002]
[1772968625855,0.00148,67604.0,67590.0,0.02551581]
[1772968626074,0.00039804,67605.0,67591.0,0.02551581]
[1772968626075,0.00148,67603.0,67591.0,0.02551581]
[1772968627889,0.00117512,67602.0,67585.0,0.02551581]
[1772968628090,0.14792943,67602.0,67585.0,0.02551581]
[1772968629363,0.00117512,67602.0,67586.0,0.13100733]
[1772968629566,0.00117512,67602.0,67587.0,0.02548596]
[1772968629820,0.00148,67601.0,67588.0,0.02548596]
[1772968630030,0.00148,67601.0,67589.0,0.02548596]
[1772968630664,0.13182086,67600.0,67584.0,0.0002]
[1772968630997,0.01476664,67597.0,67584.0,0.0002]
[1772968631169,0.1465875,67597.0,67584.0,0.0002]
[1772968631326,0.00148,67596.0,67585.0,0.02548596]
[1772968631532,0.10880537,67603.0,67585.0,0.13100733]
[1772968631735,0.00148,67602.0,67586.0,0.02548596]
[1772968632136,0.1465875,67604.0,67586.0,0.02548596]
[1772968632137,0.00148,67601.0,67586.0,0.02548596]
[1772968632337,0.01619497,67601.0,67586.0,0.02548596]
[1772968632865,0.14801583,67601.0,67586.0,0.02548596]
[1772968633240,0.13330086,67601.0,67586.0,0.02548596]
[1772968633463,0.01466352,67600.0,67586.0,0.02548596]
[1772968634230,0.01461229,67598.0,67585.0,0.0002]
[1772968634349,0.00148,67601.0,67584.0,0.0002]
[1772968634350,0.01461229,67594.0,67584.0,0.0002]
[1772968634579,0.00022001,67602.0,67581.0,0.0002]
[1772968634580,0.01461229,67592.0,67581.0,0.0002]
[1772968634850,0.00148,67591.0,67581.0,0.0002]
[1772968636522,0.0012952,67591.0,67581.0,0.0002]
[1772968637662,0.01575651,67591.0,67581.0,0.0002]
[1772968638112,0.01575651,67591.0,67580.0,0.0002]
[1772968638113,0.13182086,67590.0,67580.0,0.0002]
[1772968638296,0.14623245,67590.0,67580.0,0.0002]
[1772968638859,0.01441159,67590.0,67580.0,0.0002]
[1772968639306,0.13182086,67590.0,67580.0,0.0002]
[1772968639515,0.13182086,67588.0,67577.0,0.0002]
[1772968639707,0.01431288,67586.0,67577.0,0.0002]
[1772968639882,0.00148,67585.0,67577.0,0.0002]
[1772968642217,0.00148,67584.0,67578.0,0.02548596]
[1772968642378,0.00148,67583.0,67578.0,0.02548596]
[1772968642578,0.00148,67583.0,67580.0,0.02548596]
[1772968643451,0.14603587,67598.0,67580.0,0.02560551]
[1772968643675,0.00148,67597.0,67581.0,0.02548596]
[1772968644003,0.14603587,67598.0,67581.0,0.02548596]
[1772968644203,0.00148,67597.0,67581.0,0.13100733]
[1772968644550,0.00148,67597.0,67582.0,0.02548596]
[1772968644751,0.00148,67596.0,67582.0,0.02548596]
[1772968645664,0.00148,67595.0,67584.0,0.02548596]
[1772968645991,0.00148,67594.0,67586.0,0.02548596]
[1772968646321,0.00148,67595.0,67587.0,0.13100733]
[1772968646532,0.00022001,67599.0,67588.0,0.02548596]
[1772968646757,0.00148,67596.0,67588.0,0.02548596]
[1772968647269,0.00022001,67599.0,67588.0,0.02548596]
[1772968647475,0.00148,67595.0,67588.0,0.02548596]
[1772968647991,0.00148,67594.0,67588.0,0.02548596]
[1772968648393,0.00022001,67599.0,67588.0,0.02548596]
[1772968648562,0.00148,67598.0,67588.0,0.02548596]
[1772968648766,0.00022001,67599.0,67588.0,0.02548596]
[1772968648994,0.00148,67597.0,67588.0,0.02548596]
[1772968649176,0.00022001,67599.0,67588.0,0.13100733]
[1772968649350,0.00148,67598.0,67590.0,0.02548596]
[1772968649787,0.00022001,67595.0,67590.0,0.02548596]
[1772968649968,0.00170001,67595.0,67591.0,0.02548596]
[1772968650376,0.00022001,67595.0,67591.0,0.02548596]
[1772968650776,0.00148,67595.0,67592.0,0.13100733]
[1772968650986,0.00148,67595.0,67593.0,0.02548596]
[1772968651598,0.00022001,67599.0,67593.0,0.02548596]
[1772968651766,0.00148,67598.0,67593.0,0.02548596]
[1772968652282,0.00022001,67606.0,67594.0,0.13100733]
[1772968652483,0.11635788,67616.0,67580.0,0.00011955]
[1772968652484,0.00148,67607.0,67597.0,0.02548596]
[1772968652685,0.00148,67609.0,67601.0,0.02548596]
[1772968652907,0.00148,67609.0,67603.0,0.02548596]
[1772968653125,0.00022001,67616.0,67603.0,0.02548596]
[1772968653308,0.10999816,67611.0,67603.0,0.02548596]
[1772968653510,0.00022001,67616.0,67603.0,0.02548596]
[1772968653883,0.00061805,67616.0,67603.0,0.02548596]
[1772968656290,0.11407923,67616.0,67603.0,0.02548596]
[1772968657305,0.00148,67615.0,67603.0,0.02548596]
[1772968657507,0.00061805,67616.0,67603.0,0.02548596]
[1772968657508,0.00148,67614.0,67603.0,0.02548596]
[1772968658391,0.01387868,67612.0,67579.0,0.13449672]
[1772968658714,0.01387072,67609.0,67584.0,0.02557079]
[1772968658906,0.01387072,67609.0,67587.0,0.13449672]
[1772968659140,0.01387072,67609.0,67589.0,0.13449672]
[1772968659441,0.01387072,67609.0,67591.0,0.02557079]
[1772968660035,0.13127349,67608.0,67591.0,0.02557079]
[1772968660238,0.01382353,67605.0,67584.0,0.02557079]
[1772968660446,0.00061805,67616.0,67584.0,0.02557079]
[1772968660447,0.01382353,67603.0,67584.0,0.02557079]
[1772968660645,0.00148,67602.0,67585.0,0.02557079]
[1772968661171,0.00061805,67616.0,67586.0,0.02557079]
[1772968661312,0.14505002,67612.0,67589.0,0.13449672]
[1772968661515,0.13127349,67612.0,67592.0,0.02557079]
[1772968661719,0.01372971,67610.0,67592.0,0.02557079]
[1772968661924,0.1450032,67610.0,67592.0,0.02557079]
[1772968662131,0.01372971,67609.0,67592.0,0.02557079]
[1772968662329,0.00148,67608.0,67592.0,0.02557079]
[1772968663255,0.01516307,67608.0,67592.0,0.02557079]